lending/lending_fUSD_20260204
["ID","MTS","AMOUNT","RATE_DAILY","PERIOD"]
[404487670,1770207044604,-500.0,0.00013698,2]
[404487671,1770207044614,-500.0,0.00013698,2]
[404487672,1770207044623,-500.0,0.00013698,2]
[404487673,1770207044633,-500.0,0.00013698,2]
[404487674,1770207044643,-500.0,0.00013698,2]
[404487675,1770207044652,-500.0,0.00013698,2]
[404487676,1770207044662,-500.0,0.00013698,2]
[404487677,1770207044672,-275.31,0.00013698,2]
[404487678,1770207044682,-500.0,0.00013698,2]
[404487679,1770207044691,-773.362745,0.00013698,2]
[404487680,1770207044701,-500.0,0.00013698,2]
[404487681,1770207044712,-500.0,0.00013698,2]
[404487682,1770207044723,-500.0,0.00013698,2]
[404487683,1770207044732,-500.0,0.00013698,2]
[404487684,1770207044741,-500.0,0.00013698,2]
[404487685,1770207044751,-500.0,0.00013698,2]
[404487686,1770207044760,-500.0,0.00013698,2]
[404487687,1770207044770,-773.362745,0.00013698,2]
[404487688,1770207044779,-234.378992,0.00013698,2]
[404487689,1770207044789,-773.362745,0.00013698,2]
[404487690,1770207044799,-151.0,0.00013698,2]
[404487691,1770207044808,-773.362745,0.00013698,2]
[404487693,1770207044818,-13453.2,0.00013699,2]
[404487694,1770207044827,-151.0,0.00013699,2]
[404487696,1770207044837,-151.0,0.00013699,2]
[404487697,1770207044847,-666.0,0.00013699,2]
[404487698,1770207044856,-151.0,0.000137,2]
[404487699,1770207044868,-151.0,0.000137,2]
[404487700,1770207044878,-4711.72,0.000137,2]
[404487701,1770207044887,-4711.72,0.000137,2]
[404487702,1770207044896,-4711.72,0.000137,2]
[404487703,1770207044905,-4711.72,0.000137,2]
[404487705,1770207044914,-4711.72,0.000137,2]
[404487707,1770207044925,-290.39862941,0.00013709,2]
[404487709,1770207044936,-2361.0,0.00013719,2]
[404487711,1770207044946,-577.0,0.00013719,2]
[404487712,1770207044956,-181.08010149,0.00013719,2]
[404487713,1770207044966,-500.0,0.00013763,2]
[404487714,1770207044977,-301.1433787,0.00013764,2]
[404487715,1770207044986,-773.56,0.00013766,2]
[404487716,1770207044997,-500.0,0.00013769,2]
[404487717,1770207045007,-2361.0,0.00013774,2]
[404487718,1770207045017,-577.0,0.00013774,2]
[404487719,1770207045028,-151.0,0.000138,2]
[404487720,1770207045037,-2361.0,0.00013829,2]
[404487721,1770207045047,-577.0,0.00013829,2]
[404487722,1770207045056,-2361.0,0.00013883,2]
[404487723,1770207045067,-577.0,0.00013883,2]
[404487724,1770207045079,-1000.0,0.00013892,2]
[404487725,1770207045094,-2361.0,0.00013938,2]
[404487726,1770207045105,-577.0,0.00013938,2]
[404487727,1770207045115,-951.93465804,0.00013942,2]
[404487728,1770207045126,-2361.0,0.00013993,2]
[404487729,1770207045137,-577.0,0.00013993,2]
[404487730,1770207045147,-773.56,0.0001404,2]
[404487731,1770207045157,-500.0,0.00014043,2]
[404487732,1770207045168,-2361.0,0.00014048,2]
[404487733,1770207045179,-577.0,0.00014048,2]
[404487734,1770207045190,-151.0,0.00014048,2]
[404487735,1770207045199,-773.362745,0.00014048,2]
[404487736,1770207045209,-773.362745,0.00014048,2]
[404487737,1770207045220,-773.362745,0.00014048,2]
[404487738,1770207045230,-773.362745,0.00014048,2]
[404487739,1770207045242,-151.0,0.00014102,2]
[404487740,1770207045253,-2361.0,0.00014103,2]
[404487741,1770207045262,-577.0,0.00014103,2]
[404487742,1770207045272,-151.0,0.00014136,2]
[404487743,1770207045282,-151.0,0.00014136,2]
[404487744,1770207045293,-510.672568,0.00014136,2]
[404487745,1770207045303,-151.0,0.00014136,2]
[404487746,1770207045313,-151.0,0.00014136,2]
[404487747,1770207045324,-510.672568,0.00014136,2]
[404487748,1770207045334,-151.0,0.00014136,2]
[404487749,1770207045342,-510.672568,0.00014136,2]
[404487750,1770207045352,-235.921672,0.00014136,2]
[404487751,1770207045362,-510.672568,0.00014136,2]
[404487752,1770207045371,-151.0,0.00014136,2]
[404487753,1770207045380,-2361.0,0.00014157,2]
[404487754,1770207045390,-577.0,0.00014157,2]
[404487755,1770207045399,-416.41838838,0.000142,2]
[404487756,1770207045410,-3507.70665911,0.00014206,2]
[404487757,1770207045419,-4053.24271575,0.00014206,2]
[404487758,1770207045431,-2361.0,0.00014212,2]
[404487759,1770207045440,-577.0,0.00014212,2]
[404487760,1770207045450,-250.0,0.00014247,5]
[404487761,1770207045459,-250.0,0.00014247,5]
[404487762,1770207045469,-250.0,0.00014247,5]
[404487763,1770207045478,-250.0,0.00014247,5]
[404487764,1770207045488,-250.0,0.00014247,5]
[404487765,1770207045497,-250.0,0.00014247,5]
[404487766,1770207045507,-250.0,0.00014247,5]
[404487767,1770207045517,-250.0,0.00014247,5]
[404487768,1770207045528,-250.0,0.00014247,5]
[404487769,1770207045538,-250.0,0.00014247,5]
[404487770,1770207045547,-250.0,0.00014247,5]
[404487771,1770207045558,-250.0,0.00014247,5]
[404487772,1770207045568,-250.0,0.00014247,5]
[404487773,1770207045577,-185.602916,0.00014247,5]
[404487774,1770207045587,-255.0,0.00014254,2]
[404487775,1770207045596,-2361.0,0.00014267,2]
[404487776,1770207045605,-577.0,0.00014267,2]
[404487777,1770207045614,-187.78006525,0.00014267,2]
[404487778,1770207045624,-500.0,0.00014311,2]
[404487779,1770207045634,-775.21,0.00014314,2]
[404487780,1770207045643,-500.0,0.00014317,2]
[404487781,1770207045652,-2361.0,0.00014322,2]
[404487782,1770207045661,-577.0,0.00014322,2]
[404487783,1770207045670,-2361.0,0.00014377,2]
[404487784,1770207045679,-577.0,0.00014377,2]
[404487785,1770207045689,-759.66326108,0.00014413,2]
[404487786,1770207045698,-420.0,0.00014418,2]
[404487787,1770207045708,-2361.0,0.00014431,2]
[404487788,1770207045718,-577.0,0.00014431,2]
[404487789,1770207045727,-1680.0,0.00014463,2]
[404487790,1770207045736,-2361.0,0.00014486,2]
[404487791,1770207045747,-577.0,0.00014486,2]
[404487792,1770207045758,-2361.0,0.00014541,2]
[404487793,1770207045768,-577.0,0.00014541,2]
[404487794,1770207045778,-696.64,0.00014575,2]
[404487796,1770207045787,-500.0,0.00014575,2]
[404487798,1770207045796,-693.64,0.00014575,2]
[404487800,1770207045805,-507.78,0.00014575,2]
[404487802,1770207045814,-334.5472959,0.00014583,2]
[404487804,1770207045823,-2361.0,0.00014596,2]
[404487806,1770207045832,-577.0,0.00014596,2]
[404487808,1770207045842,-568.24850317,0.000146,2]
[404487810,1770207045851,-500.0,0.000146,2]
[404487812,1770207045860,-500.43942892,0.000146,2]
[404487814,1770207045869,-500.0,0.000146,2]
[404487816,1770207045878,-500.0,0.000146,2]
[404487818,1770207045886,-500.0,0.000146,2]
[404487820,1770207045895,-500.0,0.000146,2]
[404487822,1770207045904,-500.0,0.000146,2]
[404487824,1770207045913,-438.12120673,0.000146,2]
[404487826,1770207045922,-500.0,0.000146,2]
[404487828,1770207045930,-500.0,0.000146,2]
[404487829,1770207045940,-500.0,0.000146,2]
[404487831,1770207045949,-500.0,0.000146,2]
[404487832,1770207045958,-500.0,0.000146,2]
[404487833,1770207045966,-500.0,0.000146,2]
[404487835,1770207045976,-500.35948587,0.000146,2]
[404487837,1770207045985,-501.46275829,0.000146,2]
[404487839,1770207045993,-500.0,0.000146,2]
[404487841,1770207046002,-500.0,0.000146,2]
[404487843,1770207046011,-500.0,0.000146,2]
[404487845,1770207046020,-207.06822891,0.000146,2]
[404487846,1770207046029,-500.0,0.000146,2]
[404487848,1770207046039,-500.0,0.000146,2]
[404487850,1770207046049,-422.32864224,0.000146,2]
[404487852,1770207046058,-500.0,0.000146,2]
[404487854,1770207046067,-500.6069839,0.000146,2]
[404487856,1770207046076,-1178.63534639,0.00014612,5]
[404487858,1770207046087,-696.64,0.00014613,2]
[404487860,1770207046095,-500.0,0.00014613,2]
[404487862,1770207046104,-693.64,0.00014613,2]
[404487865,1770207046113,-507.78,0.00014613,2]
[404487867,1770207046123,-255599.22,0.00014614,2]
[404487869,1770207046132,-151.0,0.00014614,2]
[404487871,1770207046141,-151.0,0.00014614,2]
[404487873,1770207046149,-151.0,0.00014614,2]
[404487875,1770207046159,-151.0,0.00014614,2]
[404487877,1770207046168,-151.0,0.00014614,2]
[404487879,1770207046177,-151.0,0.00014614,2]
[404487881,1770207046186,-510.672568,0.00014614,2]
[404487882,1770207046195,-288.99924,0.00014614,2]
[404487884,1770207046203,-151.0,0.00014614,2]
[404487885,1770207046214,-510.672568,0.00014614,2]
[404487887,1770207046223,-151.0,0.00014614,2]
[404487888,1770207046232,-510.672568,0.00014614,2]
[404487890,1770207046242,-510.672568,0.00014614,2]
[404487892,1770207046252,-151.0,0.00014614,2]
[404487893,1770207046261,-773.362745,0.00014614,2]
[404487895,1770207046272,-773.362745,0.00014614,2]
[404487896,1770207046281,-773.362745,0.00014614,2]
[404487898,1770207046291,-773.362745,0.00014614,2]
[404487899,1770207046302,-394.89579152,0.00014634,2]
[404487901,1770207046312,-1042.13624168,0.00014634,2]
[404487903,1770207046323,-1838.45185867,0.00014634,2]
[404487904,1770207046334,-2361.0,0.0001465,2]
[404487906,1770207046344,-577.0,0.0001465,2]
[404487908,1770207046354,-150.0,0.00014686,2]
[404487910,1770207046363,-2373.22977838,0.00014705,2]
[404487911,1770207046372,-583.98876038,0.00014705,2]
[404487913,1770207046382,-951.93465804,0.00014733,2]
[404487914,1770207046391,-3507.70665911,0.00014733,2]
[404487916,1770207046400,-4053.24271575,0.00014733,2]
[404487917,1770207046409,-666.0,0.00014764,2]
[404487919,1770207046419,-194.72792766,0.00014815,2]
[404487920,1770207046429,-675.51296807,0.00014971,2]
[404487922,1770207046440,-62461.34,0.00014973,2]
[404487924,1770207046449,-200.064073,0.00014973,2]
[404487925,1770207046459,-151.0,0.00014973,2]
[404487926,1770207046468,-199.00016,0.00014973,2]
[404487927,1770207046478,-151.0,0.00014973,2]
[404487929,1770207046487,-151.0,0.00014973,2]
[404487930,1770207046500,-151.0,0.00014973,2]
[404487931,1770207046509,-510.672568,0.00014973,2]
[404487932,1770207046519,-151.0,0.00014973,2]
[404487933,1770207046528,-510.672568,0.00014973,2]
[404487934,1770207046537,-151.0,0.00014973,2]
[404487935,1770207046548,-510.672568,0.00014973,2]
[404487936,1770207046558,-510.672568,0.00014973,2]
[404487937,1770207046567,-151.0,0.00014973,2]
[404487938,1770207046577,-773.362745,0.00014973,2]
[404487939,1770207046587,-773.362745,0.00014973,2]
[404487940,1770207046596,-773.362745,0.00014973,2]
[404487941,1770207046605,-773.362745,0.00014973,2]
[404487942,1770207046615,-250.0,0.00015,2]
[404487943,1770207046625,-152.38,0.00015,2]
[404487944,1770207046635,-152.38,0.00015,2]
[404487945,1770207046644,-152.38,0.00015,2]
[404487946,1770207046653,-152.38,0.00015,2]
[404487947,1770207046662,-152.38,0.00015,2]
[404487948,1770207046671,-152.38,0.00015,2]
[404487949,1770207046681,-152.38,0.00015,2]
[404487950,1770207046691,-152.38,0.00015,2]
[404487951,1770207046701,-152.38,0.00015,2]
[404487952,1770207046710,-152.38,0.00015,2]
[404487953,1770207046719,-152.38,0.00015,2]
[404487954,1770207046728,-152.38,0.00015,2]
[404487955,1770207046737,-152.38,0.00015,2]
[404487956,1770207046746,-152.38,0.00015,2]
[404487957,1770207046755,-152.38,0.00015,2]
[404487958,1770207046763,-152.38,0.00015,2]
[404487959,1770207046772,-152.38,0.00015,2]
[404487960,1770207046782,-152.38,0.00015,2]
[404487961,1770207046790,-152.38,0.00015,2]
[404487962,1770207046800,-152.38,0.00015,2]
[404487963,1770207046809,-152.38,0.00015,2]
[404487964,1770207046818,-152.38,0.00015,2]
[404487965,1770207046827,-152.38,0.00015,2]
[404487966,1770207046836,-152.38,0.00015,2]
[404487967,1770207046845,-152.38,0.00015,2]
[404487968,1770207046855,-152.38,0.00015,2]
[404487969,1770207046864,-152.38,0.00015,2]
[404487970,1770207046873,-152.38,0.00015,2]
[404487971,1770207046883,-152.38,0.00015,2]
[404487972,1770207046892,-152.38,0.00015,2]
[404487973,1770207046901,-500.0,0.00015041,2]
[404487974,1770207046911,-517.565138,0.00015068,2]
[404487975,1770207046919,-517.565138,0.00015068,2]
[404487976,1770207046929,-517.565138,0.00015068,2]
[404487977,1770207046938,-517.565138,0.00015068,2]
[404487978,1770207046947,-517.565138,0.00015068,2]
[404487979,1770207046956,-517.565138,0.00015068,2]
[404487980,1770207046965,-517.565138,0.00015068,2]
[404487981,1770207046975,-517.565138,0.00015068,2]
[404487982,1770207046983,-517.565138,0.00015068,2]
[404487983,1770207046992,-517.565138,0.00015068,2]
[404487984,1770207047001,-517.565138,0.00015068,2]
[404487985,1770207047010,-517.565138,0.00015068,2]
[404487986,1770207047021,-517.565138,0.00015068,2]
[404487987,1770207047030,-517.565138,0.00015068,2]
[404487988,1770207047039,-517.565138,0.00015068,2]
[404487989,1770207047048,-517.565138,0.00015068,2]
[404487990,1770207047057,-1009.49329008,0.00015148,2]
[404487991,1770207047066,-728.46930276,0.00015148,2]
[404487992,1770207047075,-1000.0,0.00015148,2]
[404487993,1770207047088,-1000.0,0.00015148,2]
[404487994,1770207047097,-722.13817411,0.00015148,2]
[404487995,1770207047106,-1000.0,0.00015148,2]
[404487996,1770207047115,-500.0,0.00015148,2]
[404487997,1770207047125,-500.0,0.00015148,2]
[404487998,1770207047134,-1000.0,0.00015148,2]
[404487999,1770207047143,-1000.0,0.00015148,2]
[404488000,1770207047154,-1115.98913176,0.00015148,2]
[404488001,1770207047163,-796.55427389,0.00015148,2]
[404488002,1770207047172,-1000.0,0.00015148,2]
[404488003,1770207047181,-246.68559216,0.00015148,2]
[404488004,1770207047191,-509.90234857,0.00015148,2]
[404488005,1770207047200,-615.04992732,0.00015148,2]
[404488006,1770207047209,-654.35091807,0.00015148,2]
[404488007,1770207047218,-150.0,0.00015195,7]
[404488008,1770207047227,-160.068675,0.00015195,7]
[404488009,1770207047236,-170.13735,0.00015195,7]
[404488010,1770207047245,-180.206026,0.00015195,7]
[404488011,1770207047255,-190.274701,0.00015195,7]
[404488012,1770207047263,-200.343376,0.00015195,7]
[404488013,1770207047272,-210.412052,0.00015195,7]
[404488014,1770207047281,-220.480727,0.00015195,7]
[404488015,1770207047290,-230.549403,0.00015195,7]
[404488016,1770207047299,-240.618078,0.00015195,7]
[404488017,1770207047308,-3507.70665911,0.00015261,2]
[404488018,1770207047317,-4053.24271575,0.00015261,2]
[404488019,1770207047326,-201.93286099,0.00015363,2]
[404488020,1770207047336,-150.0,0.00015367,7]
[404488021,1770207047344,-233.059338,0.00015367,7]
[404488022,1770207047354,-316.118676,0.00015367,7]
[404488023,1770207047363,-399.178014,0.00015367,7]
[404488024,1770207047373,-482.237353,0.00015367,7]
[404488025,1770207047383,-565.296691,0.00015367,7]
[404488026,1770207047392,-648.356029,0.00015367,7]
[404488027,1770207047401,-731.415368,0.00015367,7]
[404488028,1770207047411,-814.474706,0.00015367,7]
[404488029,1770207047420,-897.534044,0.00015367,7]
[404488030,1770207047429,-1000.0,0.00015435,2]
[404488031,1770207047441,-11515.0,0.00015445,2]
[404488032,1770207047450,-433.0,0.0001545,2]
[404488033,1770207047459,-3253.0,0.00015514,2]
[404488034,1770207047468,-568.0,0.00015514,2]
[404488035,1770207047477,-1317.0,0.00015514,2]
[404488036,1770207047487,-2476.46,0.00015514,2]
[404488037,1770207047498,-951.93465804,0.00015525,2]
[404488038,1770207047509,-196.89300111,0.00015525,2]
[404488039,1770207047518,-2659.32543792,0.00015525,2]
[404488040,1770207047528,-663.97651217,0.00015525,2]
[404488041,1770207047537,-499.78494222,0.00015525,2]
[404488042,1770207047547,-759.66326108,0.00015576,2]
[404488043,1770207047557,-2750.21402999,0.00015634,2]
[404488044,1770207047566,-200.0,0.00015639,2]
[404488045,1770207047576,-517.565138,0.00015686,2]
[404488046,1770207047589,-517.565138,0.00015686,2]
[404488047,1770207047599,-517.565138,0.00015686,2]
[404488048,1770207047609,-517.565146,0.00015686,2]
[404488049,1770207047618,-773.362745,0.00015686,2]
[404488050,1770207047627,-773.362745,0.00015686,2]
[404488051,1770207047640,-773.362745,0.00015686,2]
[404488052,1770207047650,-773.362749,0.00015686,2]
[404488053,1770207047661,-1500.0,0.00015696,2]
[404488054,1770207047671,-1500.0,0.00015696,2]
[404488055,1770207047681,-1586.3781423,0.00015696,2]
[404488056,1770207047691,-1500.0,0.00015696,2]
[404488057,1770207047700,-500.0,0.00015696,2]
[404488058,1770207047710,-702.75959751,0.00015696,2]
[404488059,1770207047896,-151.0,0.00015696,2]
[404488060,1770207047907,-151.0,0.00015696,2]
[404488061,1770207047918,-510.672568,0.00015696,2]
[404488062,1770207047927,-151.0,0.00015696,2]
[404488063,1770207047936,-510.672568,0.00015696,2]
[404488064,1770207047946,-151.0,0.00015696,2]
[404488065,1770207047955,-510.672568,0.00015696,2]
[404488066,1770207047965,-510.67256,0.00015696,2]
[404488067,1770207047975,-1000.0,0.00015727,2]
[404488068,1770207047985,-3507.70665911,0.00015789,2]
[404488069,1770207047996,-4053.24271575,0.00015789,2]
[404488070,1770207048005,-587.0,0.00015809,2]
[404488071,1770207048014,-150.0,0.00015813,2]
[404488072,1770207048023,-3719.43288921,0.00015813,2]
[404488073,1770207048033,-150.0,0.00015813,2]
[404488074,1770207048042,-13951.84751777,0.00015813,2]
[404488075,1770207048051,-150.0,0.00015813,2]
[404488076,1770207048062,-2828.45580677,0.00015813,2]
[404488077,1770207048071,-151.0,0.00015813,2]
[404488078,1770207048081,-1000.0,0.00015847,2]
[404488079,1770207048095,-2351.0,0.00015909,2]
[404488080,1770207048105,-209.40437684,0.00015911,2]
[404488081,1770207048114,-200.0,0.00015918,2]
[404488082,1770207048123,-346.92554585,0.00015952,2]
[404488083,1770207048134,-510.52,0.00015989,2]
[404488084,1770207048143,-179.25,0.00016012,2]
[404488085,1770207048152,-271.52,0.00016055,2]
[404488086,1770207048163,-150.0,0.00016055,2]
[404488087,1770207048173,-150.0,0.00016055,2]
[404488088,1770207048182,-150.0,0.00016055,2]
[404488089,1770207048193,-150.0,0.00016055,2]
[404488090,1770207048202,-150.0,0.00016055,2]
[404488091,1770207048211,-150.0,0.00016055,2]
[404488092,1770207048221,-150.0,0.00016055,2]
[404488093,1770207048230,-150.0,0.00016055,2]
[404488094,1770207048240,-150.0,0.00016055,2]
[404488095,1770207048249,-1410.0,0.00016055,2]
[404488096,1770207048259,-1335.0,0.00016055,2]
[404488097,1770207048269,-3482.0,0.00016055,2]
[404488098,1770207048279,-616.0,0.00016055,2]
[404488099,1770207048288,-150.0,0.00016055,2]
[404488100,1770207048298,-1271.0,0.00016055,2]
[404488101,1770207048308,-1205.0,0.00016055,2]
[404488102,1770207048318,-917.0,0.00016055,2]
[404488103,1770207048327,-151.0,0.00016116,2]
[404488104,1770207048337,-9999.99,0.00016116,2]
[404488105,1770207048346,-3533.29,0.00016116,2]
[404488106,1770207048355,-25968.81,0.00016116,2]
[404488107,1770207048365,-179.27,0.00016138,2]
[404488108,1770207048374,-358.54,0.00016152,2]
[404488109,1770207048384,-259.76,0.00016212,2]
[404488110,1770207048393,-500.0,0.00016214,2]
[404488111,1770207048403,-2000.0,0.00016244,2]
[404488112,1770207048413,-2000.0,0.00016244,2]
[404488113,1770207048423,-2000.0,0.00016244,2]
[404488114,1770207048433,-250.0,0.00016261,2]
[404488115,1770207048443,-951.93465804,0.00016317,2]
[404488116,1770207048453,-3507.70665911,0.00016317,2]
[404488117,1770207048463,-4053.24271575,0.00016317,2]
[404488118,1770207048472,-1137.0,0.00016324,2]
[404488119,1770207048482,-217.15233878,0.00016459,2]
[404488120,1770207048491,-1137.0,0.00016498,2]
[404488121,1770207048501,-200.0,0.00016515,2]
[404488122,1770207048511,-470.242958,0.00016541,2]
[404488123,1770207048520,-476.96037247,0.00016541,2]
[404488124,1770207048530,-500.0,0.0001663,2]
[404488125,1770207048540,-3721.1328,0.00016634,2]
[404488126,1770207048550,-759.66326108,0.00016738,2]
[404488127,1770207048559,-736.0,0.00016752,2]
[404488128,1770207048568,-503.65232804,0.00016792,2]
[404488129,1770207048578,-2500.0,0.00016792,2]
[404488130,1770207048587,-2500.0,0.00016792,2]
[404488131,1770207048597,-300.0,0.00016805,2]
[404488132,1770207048606,-300.0,0.00016805,2]
[404488133,1770207048616,-696.64,0.00016805,2]
[404488134,1770207048625,-500.0,0.00016805,2]
[404488135,1770207048635,-693.64,0.00016805,2]
[404488136,1770207048644,-507.78,0.00016805,2]
[404488137,1770207048654,-3002.9386789,0.00016806,2]
[404488138,1770207048664,-106796.7323554,0.00016806,2]
[404488139,1770207048674,-3507.70665911,0.00016844,2]
[404488140,1770207048684,-4053.24271575,0.00016844,2]
[404488141,1770207048694,-1137.0,0.00016938,2]
[404488142,1770207048704,-476.96037247,0.00016955,2]
[404488143,1770207048713,-1000.0,0.00016979,2]
[404488144,1770207048722,-300.0,0.00017,2]
[404488145,1770207048732,-5000.0,0.00017,2]
[404488146,1770207048741,-225.18697532,0.00017007,2]
[404488147,1770207048751,-1137.0,0.00017046,2]
[404488148,1770207048760,-1137.0,0.00017069,2]
[404488149,1770207048770,-1137.0,0.00017107,2]
[404488150,1770207048779,-951.93465804,0.00017108,2]
[404488151,1770207048788,-200.0,0.00017112,2]
[404488152,1770207048798,-200.0,0.00017162,2]
[404488153,1770207048807,-300.0,0.00017199,2]
[404488154,1770207048817,-300.0,0.00017199,2]
[404488155,1770207048826,-14216.56,0.000172,2]
[404488156,1770207048836,-1000.0,0.000172,2]
[404488157,1770207048845,-1137.0,0.00017227,2]
[404488158,1770207048854,-322.66,0.0001723,2]
[404488159,1770207048863,-1137.0,0.00017243,2]
[404488160,1770207048872,-1137.0,0.00017262,2]
[404488161,1770207048882,-300.0,0.00017289,2]
[404488162,1770207048891,-300.0,0.00017289,2]
[404488163,1770207048900,-150.0,0.00017299,2]
[404488164,1770207048910,-150.0,0.00017299,2]
[404488165,1770207048919,-255.37954347,0.00017299,2]
[404488166,1770207048928,-300.162,0.00017299,2]
[404488167,1770207048938,-696.64,0.00017299,2]
[404488168,1770207048948,-245.91228722,0.00017299,2]
[404488169,1770207048957,-693.64,0.00017299,2]
[404488170,1770207048967,-507.78,0.00017299,2]
[404488171,1770207048977,-300.0,0.00017299,2]
[404488172,1770207048987,-300.0,0.00017299,2]
[404488173,1770207048996,-98084.82773121,0.000173,2]
[404488174,1770207049006,-120450.35849776,0.000173,2]
[404488175,1770207049015,-200.0,0.000173,2]
[404488176,1770207049026,-200.0,0.000173,2]
[404488177,1770207049036,-153.0,0.000173,2]
[404488178,1770207049045,-278.97730158,0.000173,2]
[404488179,1770207049055,-222.06432208,0.000173,2]
[404488180,1770207049064,-151.0,0.000173,2]
[404488181,1770207049074,-2000.0,0.000173,2]
[404488182,1770207049087,-2000.0,0.000173,2]
[404488183,1770207049097,-206.0,0.00017319,2]
[404488184,1770207049106,-359.76179104,0.00017321,2]
[404488185,1770207049116,-206.0,0.00017323,2]
[404488186,1770207049126,-823.0,0.00017335,2]
[404488187,1770207049136,-3000.0,0.0001734,2]
[404488188,1770207049145,-3000.0,0.0001734,2]
[404488189,1770207049155,-160.0,0.00017363,2]
[404488190,1770207049164,-487.0364942,0.00017368,2]
[404488191,1770207049174,-476.96037247,0.00017368,2]
[404488192,1770207049183,-3507.70665911,0.00017372,2]
[404488193,1770207049194,-4053.24271575,0.00017372,2]
[404488194,1770207049204,-1137.0,0.00017401,2]
[404488195,1770207049213,-159.58944175,0.00017423,2]
[404488196,1770207049222,-200.0,0.00017473,2]
[404488197,1770207049232,-200.0,0.00017473,2]
[404488198,1770207049241,-2000.0,0.000175,2]
[404488199,1770207049251,-2000.0,0.000175,2]
[404488200,1770207049261,-3292.0,0.000175,2]
[404488201,1770207049270,-180.34397711,0.000175,2]
[404488202,1770207049279,-233.51889341,0.00017555,2]
[404488203,1770207049289,-1000.0,0.00017585,2]
[404488204,1770207049298,-1000.0,0.00017585,2]
[404488205,1770207049307,-1000.0,0.00017585,2]
[404488206,1770207049317,-1000.0,0.00017585,2]
[404488207,1770207049326,-1000.0,0.00017585,2]
[404488208,1770207049336,-1000.0,0.00017585,2]
[404488209,1770207049345,-1000.0,0.00017585,2]
[404488210,1770207049355,-1000.0,0.00017585,2]
[404488211,1770207049364,-1000.0,0.00017585,2]
[404488212,1770207049374,-1000.0,0.00017585,2]
[404488213,1770207049383,-1137.0,0.00017608,2]
[404488214,1770207049393,-300.0,0.00017619,2]
[404488215,1770207049403,-411.23606988,0.00017619,2]
[404488216,1770207049413,-1000.0,0.00017643,2]
[404488217,1770207049426,-1000.0,0.00017643,2]
[404488218,1770207049441,-1000.0,0.00017643,2]
[404488219,1770207049451,-1000.0,0.00017643,2]
[404488220,1770207049461,-1000.0,0.00017643,2]
[404488221,1770207049471,-651.342,0.00017643,2]
[404488222,1770207049481,-200.0,0.00017648,2]
[404488223,1770207049491,-200.0,0.00017648,2]
[404488224,1770207049502,-206.0,0.00017658,2]
[404488225,1770207049512,-2000.0,0.000177,2]
[404488226,1770207049522,-2000.0,0.000177,2]
[404488227,1770207049532,-200.0,0.00017709,2]
[404488228,1770207049541,-1137.0,0.00017713,2]
[404488229,1770207049551,-206.0,0.00017715,2]
[404488230,1770207049562,-155.0,0.00017731,2]
[404488231,1770207049572,-169.62,0.00017738,2]
[404488232,1770207049582,-206.0,0.00017775,2]
[404488233,1770207049591,-487.0364942,0.00017782,2]
[404488234,1770207049602,-476.96037247,0.00017782,2]